Workbook

Sheet 1. Forside
A1: Silkeborg Vand A/S
D8: Bilag A
D13: Indholdsfortegnelse
C16: Fane nr. 2 | D16: Samlet prisloft
C17: Fane nr. 3 | D17: Driftsomkostninger
C18: Fane nr. 4 | D18: Historiske investeringer
C19: Fane nr. 5 | D19: Gennemførte investeringer
C20: Fane nr. 6 | D20: Korrektion investeringer
C21: Fane nr. 7 | D21: Planlagte investeringer
C22: Fane nr. 8 | D22: 1:1 omkostninger
C23: Fane nr. 9 | D23: Miljø- og servicemål
C24: Fane nr. 10 | D24: Nettofinansielle poster
C25: Fane nr. 11 | D25: Over- eller underdækning
C26: Fane nr. 12 | D26: Kontrol med indtægtsrammen og oversigt over ekstraordinære effektiviseringsgevinster

Sheet 2. Samlet prisloft
A1: ='1. Forside'!A1 -> Silkeborg Vand A/S
B4: Fane 2. Samlet prisloft for 2015
B6: Driftsomkostninger
B7: Driftsomkostninger i prisloftet for 2014 | C7: ='3. Driftsomkostninger'!C20 -> 14941898.15 | D7: kr.
B8: Bortfald af væsentlige omkostninger | C8: =-'3. Driftsomkostninger'!C16 -> 0 | D8: kr.
B9: Korrektion for prisudviklingen 2014-2015 | C9: ='3. Driftsomkostninger'!C22 -> 11953.51852 | D9: kr.
B10: Forhøjelse til effektivt niveau iht. benchmarkingen | C10: ='3. Driftsomkostninger'!C28 -> 0 | D10: kr.
B11: Korrektion for generelt effektiviseringskrav | C11: =-'3. Driftsomkostninger'!C34 -> -65744.35186 | D11: kr.
B12: Korrektion for individuelt effektiviseringskrav | C12: =-'3. Driftsomkostninger'!C43 -> -412396.3572 | D12: kr.
B13: Driftsomkostninger i alt | C13: =SUM(C7:C12) -> 14475710.96 | D13: kr. | E13: =C13 -> 14475710.96 | F13: kr.
B14: Investeringer
B15: Tillæg for historiske investeringer | C15: ='4. Historiske investeringer'!C9 -> 10748348.87 | D15: kr.
B16: Tillæg for gennemførte investeringer i 2011-2013 | C16: ='5. Gennemførte investeringer'!F24 -> 1413546.667 | D16: kr.
B17: Korrektion af tillæg for planlagte investeringer vedrørende 2013 | C17: ='6. Korrektion investeringer'!C10 -> -110080.3333 | D17: kr.
B18: Tillæg for planlagte investeringer i 2014 og 2015 | C18: ='7. Planlagte investeringer'!F49 -> 1852866.667 | D18: kr.
B19: Investeringstillæg i alt | C19: =SUM(C15:C18) -> 13904681.87 | D19: kr. | E19: =C19 -> 13904681.87 | F19: kr.
B20: Øvrige omkostninger mv.
B21: Tillæg for 1:1 omkostninger i 2015 | C21: ='8. 1-1 omkostninger'!C10 -> 1413000 | D21: kr.
B22: Tillæg for afgift for ledningsført vand i 2015 | C22: ='8. 1-1 omkostninger'!C15 -> 14712000 | D22: kr.
B23: Tillæg vedr. revisorerklæringer og DANVA/FVD-kontingent | C23: ='8. 1-1 omkostninger'!C21 -> 130000 | D23: kr.
B24: Korrektion ift. faktiske 1:1 omkostninger i 2013 | C24: ='8. 1-1 omkostninger'!C27 -> 1680329 | D24: kr.
B25: Tillæg for driftsomkostninger til miljø- og servicemål i 2015 | C25: ='9. Miljø- og servicemål'!C8 -> 0 | D25: kr.
B26: Korrektion ift. faktiske driftsomkostninger til miljø- og servicemål i 2013 | C26: ='9. Miljø- og servicemål'!C15 -> 0 | D26: kr.
B27: Tillæg/fradrag for nettofinansielle poster i 2015 | C27: ='10. Nettofinansielle poster'!C9 -> -100000 | D27: kr.
B28: Korrektion ift. faktiske nettofinansielle poster i 2013 | C28: ='10. Nettofinansielle poster'!C16 -> 166000 | D28: kr.
B29: Øvrige omkostninger mv. i alt | C29: =SUM(C21:C28) -> 18001329 | D29: kr. | E29: =C29 -> 18001329 | F29: kr.
B30: Historisk over- eller underdækning
B31: Tillæg/fradrag for over- eller underdækning til og med 2010 | C31: ='11. Over- eller underdækning'!C11 -> -5616500 | D31: kr. | E31: =C31 -> -5616500 | F31: kr.
B32: Korrektion i forhold til tidligere indtægtsramme
B33: Korrektion for overholdelse af indtægtsramme i prisloft 2013 | C33: ='12. Kontrol med indtægtsrammen'!E27 -> 3802147.596 | D33: kr. | E33: =C33 -> 3802147.596 | F33: kr.
B34: Samlet prisloft
B35: Indtægtsramme i 2015 | E35: =SUM(E13:E33) -> 44567369.42 | F35: kr.
B36: Debiteret vandmængde i 2013 | E36: 2414949 | F36: m3
B37: Prisloft 2015 | E37: =E35/E36 -> 18.454787 | F37: kr./m3
B38: Prisloft 2015 ekskl. afgift for ledningsført vand | E38: =(E35-C22)/E36 -> 12.36273289 | F38: kr./m3

Sheet 3. Driftsomkostninger
A1: ='1. Forside'!A1 -> Silkeborg Vand A/S
B4: Fane 3. Driftsomkostninger
B6: Driftsomkostningerne i prisloftet for 2014
B7: Korrigerede driftsomkostninger i prisloftet for 2013 (DOiPL 2013) | C7: 15234010 | D7: kr.
B8: Prisfremskrivning 1,5 pct. | C8: =0.015*SUM(C7:C7) -> 228510.15 | D8: kr.
B9: Generelt effektiviseringskrav (0 pct.) | C9: 0 | D9: kr.
B10: Individuelt effektiviseringskrav | C10: -520622 | D10: kr.
B11: Driftsomkostningerne i prisloftet for 2014 (DOiPL 2014) | C11: =SUM(C7:C10) -> 14941898.15 | D11: kr.
B14: Korrektion for forventet bortfald af væsentlige omkostninger
B15: Selskabets indberettede bortfald af væsentlige omkostninger inden 2015 | C15: 0 | D15: kr.
B16: Korrektion for forventet bortfald | C16: =SUM(C15:C15) -> 0 | D16: kr.
B19: Korrektion for prisudviklingen fra 2014-2015
B20: Driftsomkostningerne i prisloftet for 2014 | C20: =C11-C16 -> 14941898.15 | D20: kr.
B21: Prisudvikling 2014 - 2015 | C21: 0.08 | D21: pct.
B22: Korrektion for prisudvikling | C22: =C20*(C21/100) -> 11953.51852 | D22: kr.
B25: Eventuel forhøjelse til effektivt niveau iht. benchmarkingen
B26: Selskabets effektive driftsomkostninger iht. benchmarkingen | C26: 10861264.93 | D26: kr.
B27: Selskabets pristalskorrigerede driftsomkostninger i 2015-niveau | C27: =C20+C22 -> 14953851.67 | D27: kr.
B28: Eventuel forhøjelse til effektivt niveau | C28: =IF(C27>C26,0,C26-C27) -> 0 | D28: kr.
B31: Korrektion for generelt effektiviseringskrav
B32: Driftsomkostningerne i prisloftet for 2014 | C32: =C20 -> 14941898.15 | D32: kr.
B33: Generelt effektiviseringskrav | C33: 0.44 | D33: pct.
B34: Endeligt generelt effektiviseringskrav | C34: =C32*(C33/100) -> 65744.35186 | D34: kr.
B37: Korrektion for individuelt effektiviseringskrav
B38: Rå effektiviseringspotentiale | C38: 4080632.071 | D38: kr.
B39: Effektiviseringspotentiale efter eventuel korrektion for særlige forhold | C39: 4080632.071 | D39: kr.
B40: Effektiviseringspotentiale efter forsigtighedshensyn | C40: 1649585.429 | D40: kr.
B41: Effektiviseringspotentiale efter eventuel korrektion for sammensætning af signifikante costdrivere | C41: 1649585.429 | D41: kr.
B42: Umiddelbart effektiviseringskrav | C42: =C41/4 -> 412396.3572 | D42: kr.
B43: Endeligt individuelt effektiviseringskrav | C43: =IF(C42>0.05*C20,0.05*C20,IF(C42<0.01*C20,0,C42)) -> 412396.3572 | D43: kr.

Sheet 4. Historiske investeringer
A1: ='3. Driftsomkostninger'!A1 -> Silkeborg Vand A/S
B4: Fane 4. Historiske investeringer
B6: Tillæg for historiske investeringer
B7: Værdi af selskabets materielle anlægsaktiver pr. 1. januar 2010 | C7: 522407976.1 | D7: kr.
B8: Den årlige standardafskrivning på de materielle anlægsaktiver iht. POLKA | C8: 10748348.87 | D8: kr.
B9: Tillæg i alt i 2015 | C9: =C8 -> 10748348.87 | D9: kr.

Sheet 5. Gennemførte investeringer
A1: ='4. Historiske investeringer'!A1 -> Silkeborg Vand A/S
B4: Fane 5. Gennemførte investeringer i 2010 - 2013
B6: Tillæg for gennemførte investeringer i 2013
B7: Beskrivelse af investeringen | C7: Årstal | D7: Std. levetid (år) | E7: Anskaffelses-pris (kr.) | F7: Afskrivning
B8: Køretøjer, små lastvogne (< 3.500 kg.) | C8: 2013 | D8: 5 | E8: 47000 | F8: =E8/D8 -> 9400 | G8: kr.
B9: Nødstrømsanlæg på vandværk | C9: 2013 | D9: 25 | E9: 180000 | F9: 7200 | G9: kr.
B10: Ø 50mm < Ledningsnet = Ø110 mm | C10: 2013 | D10: 75 | E10: 3360000 | F10: 44800 | G10: kr.
B11: Ø110 mm < Ledningsnet = Ø 250 mm | C11: 2013 | D11: 75 | E11: 895000 | F11: 11933.33333 | G11: kr.
B12: Ø 250 mm < Ledningsnet = Ø 500mm | C12: 2013 | D12: 75 | E12: 1268000 | F12: 16906.66667 | G12: kr.
B13: Stik på ledningsnet, Konstruktioner | C13: 2013 | D13: 75 | E13: 982000 | F13: =E13/D13 -> 13093.33333 | G13: kr.
B14: Stik på ledningsnet, Mek./EL | C14: 2013 | D14: 75 | E14: 982000 | F14: 13093.33333 | G14: kr.
B15: Ventiler på Ø 50mm < Ledningsnet = Ø110 mm | C15: 2013 | D15: 75 | E15: 587000 | F15: 7826.666667 | G15: kr.
B16: Ventiler på Ø110 mm < Ledningsnet = Ø 250 mm | C16: 2013 | D16: 75 | E16: 155000 | F16: 2066.666667 | G16: kr.
B17: Ventiler på Ø 250 mm < Ledningsnet = Ø 500mm | C17: 2013 | D17: 75 | E17: 73000 | F17: 973.3333333 | G17: kr.
B18: SRO-brønd/kvarterbrønd/sektionsbrønd, Konstruktioner | C18: 2013 | D18: 50 | E18: 10000 | F18: 200 | G18: kr.
B19: Bygning for trykforøgere | C19: 2013 | D19: 75 | E19: 231000 | F19: 3080 | G19: kr.
B20: Afregningsmålere, elektroniske = Ø 110mm (Qn 10) | C20: 2013 | D20: 10 | E20: 2713000 | F20: 271300 | G20: kr.
B21: Pumpestation (inkl. evt. hydrofor)/trykforøger, Mek./EL | C21: 2013 | D21: 25 | E21: 725000 | F21: 29000 | G21: kr.
B22: Tillæg for 2013 | F22: =SUM(F8:F21) -> 430873.3333 | G22: kr.
B23: Tillæg for 2010 - 2012 | F23: 982673.3333 | G23: kr.
B24: Samlet tillæg for gennemførte investeringer | F24: =F22+F23 -> 1413546.667 | G24: kr.

Sheet 6. Korrektion investeringer
A1: ='5. Gennemførte investeringer'!A1 -> Silkeborg Vand A/S
B4: Fane 6. Korrektion af tillæg for planlagte investeringer
B6: Korrektion af tillæg for planlagte investeringer vedr. 2013
B7: Tillæg for planlagte investeringer i 2013 i prisloft 2013 | C7: 181027 | D7: kr.
B8: Tillæg for planlagte investeringer i 2013 i prisloft 2014 | C8: 790800 | D8: kr.
B9: Selskabets faktiske afskrivninger på gennemførte investeringer i 2013 | C9: ='5. Gennemførte investeringer'!F22 -> 430873.3333 | D9: kr.
B10: Korrektion af tillæg for planlagte investeringer vedr. 2013 | C10: =C9-C7+C9-C8 -> -110080.3333 | D10: kr.

Sheet 7. Planlagte investeringer
A1: ='6. Korrektion investeringer'!A1 -> Silkeborg Vand A/S
B4: Fane 7. Planlagte investeringer
B6: Tillæg for planlagte investeringer i 2014 og 2015
B7: Beskrivelse af investeringen | C7: Årstal | D7: Std. levetid (år) | E7: Anskaffelses-pris (kr.) | F7: Afskrivning
B8: Boring (inkl. etablering, forerør, filter og prøvepumpning) | C8: 2014 | D8: 30 | E8: 2067000 | F8: =E8/D8 -> 68900 | G8: kr.
B9: Råvandsstation komplet montering og boringshus/tørbrønd | C9: 2014 | D9: 30 | E9: 895000 | F9: =E9/D9 -> 29833.33333 | G9: kr.
B10: Instrumenter (flowmåler+tryk transducer+alarmer) | C10: 2014 | D10: 10 | E10: 414000 | F10: =E10/D10 -> 41400 | G10: kr.
B11: Pumpe inkl. stigrør og forerørsforsejlinger mv. | C11: 2014 | D11: 15 | E11: 689000 | F11: 45933.33333 | G11: kr.
B12: Elanlæg | C12: 2014 | D12: 20 | E12: 620000 | F12: 31000 | G12: kr.
B13: Beluftningsanlæg, rislebakke, Kontruktioner | C13: 2014 | D13: 50 | E13: 345000 | F13: 6900 | G13: kr.
B14: Beluftningsanlæg, rislebakke, Mek./EL | C14: 2014 | D14: 25 | E14: 414000 | F14: 16560 | G14: kr.
B15: Behandlingsanlæg, luddosering | C15: 2014 | D15: 25 | E15: 1378000 | F15: 55120 | G15: kr.
B16: Filteranlæg, åbne filtre, enkelt filtrering, Kontruktioner | C16: 2014 | D16: 50 | E16: 1103000 | F16: 22060 | G16: kr.
B17: Filteranlæg, åbne filtre, enkelt filtrering, Mek./EL | C17: 2014 | D17: 25 | E17: 965000 | F17: 38600 | G17: kr.
B18: Rentvandsbeholder insitu støbt | C18: 2014 | D18: 50 | E18: 8408000 | F18: 168160 | G18: kr.
B19: Udpumpningsanlæg, rentvandspumper på vandværk | C19: 2014 | D19: 25 | E19: 551000 | F19: 22040 | G19: kr.
B20: Udpumpningsanlæg, Freqvensomformer | C20: 2014 | D20: 25 | E20: 276000 | F20: 11040 | G20: kr.
B21: Skyllevand-/slamhåndteringsanlæg - lukkede betonbeholdere | C21: 2014 | D21: 50 | E21: 1378000 | F21: 27560 | G21: kr.
B22: Skyllevandsbehandling, inkl. UV-filter mv., Mek./EL | C22: 2014 | D22: 25 | E22: 345000 | F22: 13800 | G22: kr.
B23: Elanlæg - vandværk | C23: 2014 | D23: 25 | E23: 689000 | F23: 27560 | G23: kr.
B24: SRO-anlæg, vandværk | C24: 2014 | D24: 10 | E24: 827000 | F24: 82700 | G24: kr.
B25: Etageareal vandbehandlingsbygning | C25: 2014 | D25: 75 | E25: 689000 | F25: 9186.666667 | G25: kr.
B26: Sikring (terror, hærværk), Mek./EL | C26: 2014 | D26: 25 | E26: 138000 | F26: 5520 | G26: kr.
B27: Sikring, avanceret (hegne, porte og overvågningssystemer), Mek./EL | C27: 2014 | D27: 25 | E27: 138000 | F27: 5520 | G27: kr.
B28: Beluftningsanlæg, iltningstrappe, Kontruktioner | C28: 2014 | D28: 50 | E28: 500000 | F28: 10000 | G28: kr.
B29: Filteranlæg, åbne filtre, enkelt filtrering, Kontruktioner | C29: 2014 | D29: 50 | E29: 650000 | F29: 13000 | G29: kr.
B30: Ø110 mm < Ledningsnet = Ø 250 mm | C30: 2014 | D30: 75 | E30: 5785000 | F30: 77133.33333 | G30: kr.
B31: Stik på ledningsnet, Konstruktioner | C31: 2014 | D31: 75 | E31: 300000 | F31: 4000 | G31: kr.
B32: Stik på ledningsnet, Mek./EL | C32: 2014 | D32: 75 | E32: 300000 | F32: 4000 | G32: kr.
B33: Pumpestation (inkl. evt. hydrofor)/trykforøger, Mek./EL | C33: 2014 | D33: 25 | E33: 70000 | F33: 2800 | G33: kr.
B34: Køretøjer, små lastvogne (< 3.500 kg.) | C34: 2014 | D34: 5 | E34: 300000 | F34: 60000 | G34: kr.
B35: Ø 50mm < Ledningsnet = Ø110 mm | C35: 2014 | D35: 75 | E35: 900000 | F35: 12000 | G35: kr.
B36: SRO-brønd/kvarterbrønd/sektionsbrønd, Konstruktioner | C36: 2014 | D36: 50 | E36: 113000 | F36: 2260 | G36: kr.
B37: Afregningsmålere, elektroniske = Ø 110mm (Qn 10) | C37: 2014 | D37: 10 | E37: 5500000 | F37: 550000 | G37: kr.
B38: Ø 50mm < Ledningsnet = Ø110 mm | C38: 2014 | D38: 75 | E38: 69000 | F38: 920 | G38: kr.
B39: Ø110 mm < Ledningsnet = Ø 250 mm | C39: 2014 | D39: 75 | E39: 2757000 | F39: 36760 | G39: kr.
B40: Ø 250 mm < Ledningsnet = Ø 500mm | C40: 2014 | D40: 75 | E40: 345000 | F40: 4600 | G40: kr.
B41: Ø110 mm < Ledningsnet = Ø 250 mm | C41: 2015 | D41: 75 | E41: 7500000 | F41: 100000 | G41: kr.
B42: Stik på ledningsnet, Konstruktioner | C42: 2015 | D42: 75 | E42: 300000 | F42: 4000 | G42: kr.
B43: Stik på ledningsnet, Mek./EL | C43: 2015 | D43: 75 | E43: 300000 | F43: 4000 | G43: kr.
B44: Køretøjer, små lastvogne (< 3.500 kg.) | C44: 2015 | D44: 5 | E44: 300000 | F44: 60000 | G44: kr.
B45: Afregningsmålere, elektroniske = Ø 110mm (Qn 10) | C45: 2015 | D45: 10 | E45: 1700000 | F45: 170000 | G45: kr.
B46: Pumpestation (inkl. evt. hydrofor)/trykforøger, Mek./EL | C46: 2015 | D46: 25 | E46: 200000 | F46: 8000 | G46: kr.
B47: Tillæg for 2014 | F47: =SUMIF(C8:C46,"2014",F8:F46) -> 1506866.667 | G47: kr.
B48: Tillæg for 2015 | F48: =SUMIF(C8:C46,"2015",F8:F46) -> 346000 | G48: kr.
B49: Tillæg i alt | F49: =F47+F48 -> 1852866.667 | G49: kr.

Sheet 8. 1-1 omkostninger
A1: ='7. Planlagte investeringer'!A1 -> Silkeborg Vand A/S
B4: Fane 8. 1:1 omkostninger
B6: Tillæg for budgetterede 1:1 omkostninger i 2015
B7: Betaling til Forsyningssekretariatet | C7: 33000 | D7: kr.
B8: Tjenestemandspensioner | C8: 1100000 | D8: kr.
B9: Ejendomsskatter | C9: 280000 | D9: kr.
B10: Tillæg i alt | C10: =SUM(C7:C9) -> 1413000 | D10: kr.
B13: Tillæg for afgift for ledningsført vand i 2015
B14: Afgift for ledningsført vand (6,53 kr./m3) | C14: 14712000 | D14: kr.
B15: Tillæg i alt | C15: =SUM(C14:C14) -> 14712000 | D15: kr.
B18: Tillæg for budgetterede nødvendige udgifter til revisorerklæringer samt ordinært medlemskab af DANVA og FVD i 2015
B19: Betaling for ordinært medlemskab af DANVA/FVD | C19: 115000 | D19: kr.
B20: Betaling for revisorerklæringer | C20: 15000 | D20: kr.
B21: Tillæg i alt | C21: =SUM(C19:C20) -> 130000 | D21: kr.
B24: Korrektion af tillæg for faktiske 1:1 omkostninger (inkl. afgift for ledningsført vand, revisorerklæringer og ordinært medlemskab af DANVA/FVD) i 2013
B25: Selskabets faktiske 1:1 omkostninger mv. i 2013, jf. reguleringsregnskabet | C25: 17473329 | D25: kr.
B26: Tillæg for budgetterede 1:1 omkostninger mv. i prisloft 2013 | C26: 15793000 | D26: kr.
B27: Korrektion af tillæg for budgetterede 1:1 omkostninger mv. i 2013 | C27: =C25-C26 -> 1680329 | D27: kr.

Sheet 9. Miljø- og servicemål
A1: ='8. 1-1 omkostninger'!A1 -> Silkeborg Vand A/S
B4: Fane 9. Driftsomkostninger til miljø- og servicemål
B6: Tillæg for budgetterede driftsomkostninger til miljø- og servicemål i 2015
C7: 0 | D7: kr.
B8: Tillæg i alt | C8: =SUM(C7:C7) -> 0 | D8: kr.
B12: Korrektion af tillæg for faktiske driftsomkostninger til miljø- og servicemål i 2013
B13: Selskabets faktiske driftsomkostninger til miljø- og servicemål i 2013, jf. reguleringsregnskabet | C13: 0 | D13: kr.
B14: Tillæg for budgetterede driftsomkostninger til miljø- og servicemål i prisloft 2013 | C14: 0 | D14: kr.
B15: Korrektion af tillæg for budgetterede driftsomkostninger til miljø- og servicemål i 2013 | C15: =C13-C14 -> 0 | D15: kr.

Sheet 10. Nettofinansielle poster
A1: ='2. Samlet prisloft'!A1 -> Silkeborg Vand A/S
B4: Fane 10. Nettofinansielle poster
B6: Tillæg for budgetterede nettofinansielle poster i 2015
B7: Budgetterede renteudgifter og gebyrer i 2015 | C7: 0 | D7: kr.
B8: Budgetterede renteindtægter i 2015 | C8: 100000 | D8: kr.
B9: Tillæg/fradrag i alt | C9: =C7-C8 -> -100000 | D9: kr.
B13: Korrektion af tillæg for faktiske nettofinansielle poster i 2013
B14: Selskabets faktiske nettofinansielle poster i 2013, jf. reguleringsregnskabet | C14: -84000 | D14: kr.
B15: Tillæg for budgetterede nettofinansielle poster i prisloft 2013 | C15: -250000 | D15: kr.
B16: Korrektion af tillæg for budgetterede nettofinansielle poster i 2013 | C16: =C14-C15 -> 166000 | D16: kr.

Sheet 11. Over- eller underdækning
A1: ='1. Forside'!A1 -> Silkeborg Vand A/S
B4: Fane 11. Over- eller underdækning til og med 2010
B6: Tillæg/fradrag for over- eller underdækning til og med 2010
B7: Opgjort over- eller underdækning per 31. december 2010 | C7: -24977000 | D7: kr.
B8: Heraf beløb indregnet i prislofterne for 2011 - 2014 | C8: -19360500 | D8: kr.
B9: Endnu ikke indregnet over- eller underdækning | C9: =C7-C8 -> -5616500 | D9: kr.
B10: Resterende indregningsperiode (fastsat i prisloftet for 2012) | C10: 1 | D10: år
B11: Tillæg/fradrag i alt | C11: =IF(C7=0,0,C9/C10) -> -5616500 | D11: kr.

Sheet 12. Kontrol med indtægtsrammen
A1: ='11. Over- eller underdækning'!A1 -> Silkeborg Vand A/S
B4: Fane 12. Korrektion for overholdelse af indtægtsrammen i prisloftet for 2013
B6: Samlet opgørelse vedrørende overholdelse af indtægtsrammen i prisloftet for 2013
B7: Indtægtsramme i prisloftet for 2013 | E7: 44032662.84 | F7: kr.
B8: Ikke anvendt likviditet vedrørende investeringer i 2013
B9: Tillæg for historiske investeringer | C9: 11996468.25 | D9: kr.
B10: Tillæg for gennemførte investeringer i 2011 | C10: 625133 | D10: kr.
B11: Korrektion af tillæg for planlagte investeringer i 2011 | C11: -517613 | D11: kr.
B12: Tillæg for planlagte investeringer i 2012 og 2013 | C12: 917527 | D12: kr.
B13: Indtægter fra tilslutningsbidrag | C13: 919000 | D13: kr.
B14: Indtægter fra salg af anlægsaktiver | C14: 26000 | D14: kr.
B15: Erstatninger vedr. anlægsaktiver mv. | C15: 0 | D15: kr.
B16: Ekstraordinær effektiviseringsgevinst anvendt til investeringer | C16: =4536000+4567000 -> 9103000 | D16: kr.
B17: Udgifter til investeringer | C17: -20457000 | D17: kr.
B18: Ikke anvendt likviditet vedr. investeringer i alt | C18: =SUM(C9:C17) -> 2612515.249 | D18: kr. | E18: =IF(C18<0,0,-C18) -> -2612515.249 | F18: kr.
B19: Ekstraordinære effektiviseringsgevinster anvendt til takstnedsættelse
B20: Ekstraordinær effektiviseringsgevinst anvendt til takstnedsættelse | C20: 0 | D20: kr. | E20: =-C20 -> 0 | F20: kr.
B21: Korrektion af ikke opkrævet tillæg fra 2011 i prisloft 2013
B22: Korrektion af ikke opkrævet tillæg fra 2011 i prisloft 2013 | C22: 0 | D22: kr. | E22: =-C22 -> 0 | F22: kr.
B23: Indtægter fra primære aktiviteter mv.
B24: Indtægter fra kubikmetertakster, faste takster, særbidrag, målergebyrer samt andre takster og gebyrer | C24: 37618000 | D24: kr.
B25: Andre indtægter i prisloftåret, som selskabet har opnået i forbindelse med eller som følge af selskabets primære aktiviteter | C25: 0 | D25: kr.
B26: Indtægter fra primære aktiviteter mv. i alt | C26: =SUM(C24:C25) -> 37618000 | D26: kr. | E26: =-C26 -> -37618000 | F26: kr.
B27: Tillæg/fradrag i prisloftet for 2015 i alt | E27: =E7+E18+E20+E22+E26 -> 3802147.596 | F27: kr.
B31: Oversigt over ekstraordinære effektiviseringsgevinster
C33: 2012 | E33: 2013 | G33: 2014 | I33: 2015 | K33: 2016
B34: Indhentet ekstraordinær effektiviseringsgevinst | C34: 4567604 | D34: kr. | E34: 4536000 | F34: kr. | H34: kr. | J34: kr. | L34: kr.
B35: Gevinst anvendt til investeringer | C35: 0 | D35: kr. | E35: 9103000 | F35: kr. | H35: kr. | J35: kr. | L35: kr.
B36: Gevinst anvendt til takstnedsættelse | C36: 0 | D36: kr. | E36: 0 | F36: kr. | H36: kr. | J36: kr. | L36: kr.
B37: Korrektion for effektiviseringsgevinst der ikke er anvendt inden 4 år | C37: 0 | D37: kr. | E37: 0 | F37: kr. | H37: kr. | J37: kr. | K37: =IF(C38>SUM(E35:I36),C38-SUM(E35:I36),0)*-1 -> 0 | L37: kr.
B38: Resterende gevinst | C38: =C34-C35-C36 -> 4567604 | D38: kr. | E38: =C38+E34-E35-E36 -> 604 | F38: kr. | G38: =E38+G34-G35-G36 -> 604 | H38: kr. | I38: =G38+I34-I35-I36 -> 604 | J38: kr. | K38: =K34-K35-K36+K37+I38 -> 604 | L38: kr.
